[Event "Titled Tuesday Blitz June 13 Early 2023"]
[White "Wadsworth, Matthew J"]
[Black "Kielinkei"]
[WhiteFideId "415804"]
[WhiteElo "2347"]
[BlackElo "2490"]
[Result "1-0"]
[Round "7"]
[TimeControl "180+2"]
[Date "2023.06.13"]
[WhiteClock "0:00:49"]
[BlackClock "0:00:05"]
[Board "76"]

1. Nf3 {[%clk 0:02:59]}  d5 {[%clk 0:02:58]} 2. g3 {[%clk 0:02:59]}  Nf6 {[%clk 0:02:54]} 3. Bg2 {[%clk 0:02:59]}  c6 {[%clk 0:02:54]} 4. c4 {[%clk 0:02:59]}  e6 {[%clk 0:02:48]} 5. b3 {[%clk 0:02:58]}  Bd6 {[%clk 0:02:47]} 6. d4 {[%clk 0:02:58]}  O-O {[%clk 0:02:46]} 7. Bb2 {[%clk 0:02:58]}  Nbd7 {[%clk 0:02:45]} 8. O-O {[%clk 0:02:58]}  b6 {[%clk 0:02:41]} 9. Nfd2 {[%clk 0:02:57]}  Bb7 {[%clk 0:02:40]} 10. e4 {[%clk 0:02:52]}  dxe4 {[%clk 0:02:39]} 11. Nxe4 {[%clk 0:02:52]}  Nxe4 {[%clk 0:02:38]} 12. Bxe4 {[%clk 0:02:53]}  Nf6 {[%clk 0:02:36]} 13. Bg2 {[%clk 0:02:48]}  Qc8 {[%clk 0:02:21]} 14. Nc3 {[%clk 0:02:44]}  c5 {[%clk 0:02:18]} 15. d5 {[%clk 0:02:35]}  exd5 {[%clk 0:02:06]} 16. Nb5 {[%clk 0:02:34]}  Be7 {[%clk 0:01:47]} 17. cxd5 {[%clk 0:02:33]}  Rd8 {[%clk 0:01:48]} 18. d6 {[%clk 0:02:32]}  Bxg2 {[%clk 0:01:44]} 19. Kxg2 {[%clk 0:02:25]}  Qc6+ {[%clk 0:01:38]} 20. Qf3 {[%clk 0:02:19]}  Qxf3+ {[%clk 0:01:35]} 21. Kxf3 {[%clk 0:02:19]}  Bxd6 {[%clk 0:01:36]} 22. Bxf6 {[%clk 0:02:15]}  gxf6 {[%clk 0:01:36]} 23. Rad1 {[%clk 0:02:14]}  Be5 {[%clk 0:01:32]} 24. Rxd8+ {[%clk 0:02:06]}  Rxd8 {[%clk 0:01:33]} 25. Nxa7 {[%clk 0:02:06]}  Ra8 {[%clk 0:01:29]} 26. Nc6 {[%clk 0:01:59]}  Rxa2 {[%clk 0:01:29]} 27. Ke4 {[%clk 0:01:51]}  Rb2 {[%clk 0:01:14]} 28. f4 {[%clk 0:01:50]}  Bc3 {[%clk 0:01:07]} 29. Rf3 {[%clk 0:01:45]}  Bb4 {[%clk 0:00:45]} 30. Nxb4 {[%clk 0:01:13]}  cxb4 {[%clk 0:00:46]} 31. h3 {[%clk 0:01:12]}  Rc2 {[%clk 0:00:37]} 32. Rd3 {[%clk 0:01:09]}  Rc3 {[%clk 0:00:25]} 33. Rxc3 {[%clk 0:01:05]}  bxc3 {[%clk 0:00:26]} 34. Kd3 {[%clk 0:01:05]}  Kf8 {[%clk 0:00:26]} 35. Kxc3 {[%clk 0:01:05]}  Ke7 {[%clk 0:00:27]} 36. Kc4 {[%clk 0:01:03]}  Kd6 {[%clk 0:00:27]} 37. Kb5 {[%clk 0:01:04]}  Kc7 {[%clk 0:00:27]} 38. g4 {[%clk 0:00:56]}  Kb7 {[%clk 0:00:22]} 39. f5 {[%clk 0:00:54]}  h6 {[%clk 0:00:19]} 40. h4 {[%clk 0:00:53]}  Kc7 {[%clk 0:00:19]} 41. Ka6 {[%clk 0:00:53]}  Kd6 {[%clk 0:00:07]} 42. Kxb6 {[%clk 0:00:49]}  Ke5 {[%clk 0:00:07]} 43. b4 {[%clk 0:00:48]}  Kf4 {[%clk 0:00:08]} 44. Kc5 {[%clk 0:00:47]}  Kxg4 {[%clk 0:00:08]} 45. b5 {[%clk 0:00:48]}  Kxh4 {[%clk 0:00:06]} 46. b6 {[%clk 0:00:48]}  Kg3 {[%clk 0:00:05]} 47. b7 {[%clk 0:00:48]}  h5 {[%clk 0:00:05]} 48. b8=Q+ {[%clk 0:00:49]} 1-0


[Site "https://www.chess.com"]

[Event "Titled Tuesday Blitz June 13 Early 2023"]
[White "Andreassen, Lars"]
[Black "ATM622"]
[WhiteFideId "1504878"]
[WhiteElo "2119"]
[BlackElo "2586"]
[Result "1/2-1/2"]
[Round "7"]
[TimeControl "180+2"]
[Date "2023.06.13"]
[WhiteClock "0:01:04"]
[BlackClock "0:01:46"]
[Board "82"]

1. d4 {[%clk 0:03:00]}  Nf6 {[%clk 0:02:59]} 2. Nf3 {[%clk 0:03:01]}  d5 {[%clk 0:02:59]} 3. Bg5 {[%clk 0:03:01]}  e6 {[%clk 0:02:59]} 4. e3 {[%clk 0:03:00]}  c5 {[%clk 0:02:58]} 5. c4 {[%clk 0:03:01]}  Nc6 {[%clk 0:02:58]} 6. cxd5 {[%clk 0:03:01]}  exd5 {[%clk 0:02:56]} 7. Nc3 {[%clk 0:03:01]}  Be7 {[%clk 0:02:52]} 8. dxc5 {[%clk 0:03:02]}  O-O {[%clk 0:02:51]} 9. Be2 {[%clk 0:03:02]}  Be6 {[%clk 0:02:48]} 10. O-O {[%clk 0:03:01]}  Bxc5 {[%clk 0:02:46]} 11. Rc1 {[%clk 0:02:58]}  Be7 {[%clk 0:02:45]} 12. a3 {[%clk 0:02:54]}  h6 {[%clk 0:02:45]} 13. Bh4 {[%clk 0:02:54]}  Rc8 {[%clk 0:02:44]} 14. Nd4 {[%clk 0:02:54]}  Ne5 {[%clk 0:02:41]} 15. h3 {[%clk 0:02:52]}  a6 {[%clk 0:02:32]} 16. Re1 {[%clk 0:02:37]}  Ng6 {[%clk 0:02:27]} 17. Bg3 {[%clk 0:02:36]}  Bd6 {[%clk 0:02:26]} 18. Bxd6 {[%clk 0:02:34]}  Qxd6 {[%clk 0:02:26]} 19. Bf3 {[%clk 0:02:33]}  Ne5 {[%clk 0:02:24]} 20. Be2 {[%clk 0:02:33]}  Nc4 {[%clk 0:02:21]} 21. Bxc4 {[%clk 0:02:27]}  Rxc4 {[%clk 0:02:22]} 22. Re2 {[%clk 0:02:23]}  Rfc8 {[%clk 0:02:21]} 23. Rec2 {[%clk 0:02:23]}  b5 {[%clk 0:02:18]} 24. b3 {[%clk 0:02:09]}  R4c7 {[%clk 0:02:16]} 25. Nce2 {[%clk 0:01:35]}  Rxc2 {[%clk 0:02:12]} 26. Rxc2 {[%clk 0:01:36]}  Qxa3 {[%clk 0:02:10]} 27. Nxe6 {[%clk 0:01:32]}  Rxc2 {[%clk 0:02:09]} 28. Qxc2 {[%clk 0:01:31]}  fxe6 {[%clk 0:02:10]} 29. Qc8+ {[%clk 0:01:30]}  Kh7 {[%clk 0:02:06]} 30. Qxe6 {[%clk 0:01:27]}  Qxb3 {[%clk 0:02:05]} 31. Qf5+ {[%clk 0:01:26]}  Kg8 {[%clk 0:02:05]} 32. Qe6+ {[%clk 0:01:26]}  Kf8 {[%clk 0:02:03]} 33. Qc8+ {[%clk 0:01:24]}  Kf7 {[%clk 0:02:02]} 34. Nd4 {[%clk 0:01:19]}  Qb1+ {[%clk 0:01:59]} 35. Kh2 {[%clk 0:01:19]}  Qb2 {[%clk 0:01:51]} 36. Qe6+ {[%clk 0:01:15]}  Kg6 {[%clk 0:01:50]} 37. Qf5+ {[%clk 0:01:13]}  Kf7 {[%clk 0:01:50]} 38. Qe6+ {[%clk 0:01:13]}  Kg6 {[%clk 0:01:46]} 39. Qf5+ {[%clk 0:01:10]}  Kf7 {[%clk 0:01:46]} 40. Qe6+ {[%clk 0:01:04]} 1/2-1/2


[Site "https://www.chess.com"]

[Event "Titled Tuesday Blitz June 13 Early 2023"]
[White "Hayrapetyan, Hovik"]
[Black "Chernomordik, Pavel"]
[WhiteFideId "13302639"]
[BlackFideId "2804530"]
[WhiteElo "2348"]
[BlackElo "2193"]
[Result "0-1"]
[Round "7"]
[TimeControl "180+2"]
[Date "2023.06.13"]
[WhiteClock "0:00:00"]
[BlackClock "0:00:02"]
[Board "83"]

1. d4 {[%clk 0:03:00]}  g6 {[%clk 0:02:59]} 2. h4 {[%clk 0:02:59]}  Nf6 {[%clk 0:02:55]} 3. h5 {[%clk 0:02:58]}  Nxh5 {[%clk 0:02:54]} 4. e4 {[%clk 0:02:58]}  d6 {[%clk 0:02:51]} 5. g4 {[%clk 0:02:51]}  Nf6 {[%clk 0:02:50]} 6. f3 {[%clk 0:02:46]}  c5 {[%clk 0:02:44]} 7. dxc5 {[%clk 0:02:43]}  Qa5+ {[%clk 0:02:43]} 8. Nc3 {[%clk 0:02:42]}  Qxc5 {[%clk 0:02:43]} 9. g5 {[%clk 0:02:13]}  Nh5 {[%clk 0:02:41]} 10. Nge2 {[%clk 0:02:13]}  Bg7 {[%clk 0:02:31]} 11. Qd3 {[%clk 0:02:06]}  Nc6 {[%clk 0:02:26]} 12. Be3 {[%clk 0:01:48]}  Qa5 {[%clk 0:02:18]} 13. f4 {[%clk 0:01:30]}  Bg4 {[%clk 0:02:09]} 14. Rh4 {[%clk 0:01:18]}  Bd7 {[%clk 0:01:58]} 15. a3 {[%clk 0:01:06]}  Rc8 {[%clk 0:01:49]} 16. Bg2 {[%clk 0:00:46]}  b5 {[%clk 0:01:26]} 17. Qxb5 {[%clk 0:00:26]}  Qxb5 {[%clk 0:01:18]} 18. Nxb5 {[%clk 0:00:27]}  Bxb2 {[%clk 0:01:17]} 19. Rb1 {[%clk 0:00:27]}  Bg7 {[%clk 0:01:14]} 20. Bf3 {[%clk 0:00:19]}  Rb8 {[%clk 0:01:04]} 21. Nc7+ {[%clk 0:00:14]}  Kd8 {[%clk 0:01:03]} 22. Rxb8+ {[%clk 0:00:15]}  Nxb8 {[%clk 0:01:02]} 23. Nd5 {[%clk 0:00:15]}  Nc6 {[%clk 0:00:59]} 24. Bxh5 {[%clk 0:00:09]}  gxh5 {[%clk 0:00:58]} 25. Rxh5 {[%clk 0:00:10]}  Bg4 {[%clk 0:00:51]} 26. Rh4 {[%clk 0:00:10]}  Bf3 {[%clk 0:00:50]} 27. Ng3 {[%clk 0:00:07]}  e6 {[%clk 0:00:43]} 28. Nb4 {[%clk 0:00:05]}  Nxb4 {[%clk 0:00:41]} 29. axb4 {[%clk 0:00:06]}  Bc3+ {[%clk 0:00:41]} 30. Bd2 {[%clk 0:00:03]}  Bd4 {[%clk 0:00:40]} 31. c3 {[%clk 0:00:03]}  Bb6 {[%clk 0:00:38]} 32. Nh5 {[%clk 0:00:01]}  Bxe4 {[%clk 0:00:31]} 33. Nf6 {[%clk 0:00:01]}  Bf5 {[%clk 0:00:30]} 34. Ke2 {[%clk 0:00:02]}  Ke7 {[%clk 0:00:28]} 35. Be3 {[%clk 0:00:02]}  Rc8 {[%clk 0:00:25]} 36. Bxb6 {[%clk 0:00:01]}  axb6 {[%clk 0:00:25]} 37. Kd2 {[%clk 0:00:02]}  d5 {[%clk 0:00:21]} 38. Rh1 {[%clk 0:00:01]}  d4 {[%clk 0:00:19]} 39. cxd4 {[%clk 0:00:01]}  Rc4 {[%clk 0:00:19]} 40. Ke3 {[%clk 0:00:02]}  Rxb4 {[%clk 0:00:19]} 41. Rc1 {[%clk 0:00:02]}  Kd6 {[%clk 0:00:18]} 42. Rc8 {[%clk 0:00:01]}  Rb3+ {[%clk 0:00:17]} 43. Ke2 {[%clk 0:00:02]}  b5 {[%clk 0:00:11]} 44. Rd8+ {[%clk 0:00:02]}  Kc7 {[%clk 0:00:09]} 45. Rd7+ {[%clk 0:00:02]}  Kc6 {[%clk 0:00:09]} 46. Rxf7 {[%clk 0:00:03]}  Rh3 {[%clk 0:00:07]} 47. d5+ {[%clk 0:00:03]}  exd5 {[%clk 0:00:06]} 48. Ng8 {[%clk 0:00:03]}  Bg4+ {[%clk 0:00:04]} 49. Kd2 {[%clk 0:00:03]}  d4 {[%clk 0:00:04]} 50. Nf6 {[%clk 0:00:03]}  Be6 {[%clk 0:00:02]} 51. Ne8 {[%clk 0:00:00]}  Bxf7 {[%clk 0:00:02]} 0-1


[Site "https://www.chess.com"]

[Event "Titled Tuesday Blitz June 13 Early 2023"]
[White "Aradhya, Garg"]
[Black "Rodchenkov, Sergey D."]
[WhiteFideId "25006746"]
[BlackFideId "4168712"]
[WhiteElo "2263"]
[BlackElo "2277"]
[Result "1-0"]
[Round "7"]
[TimeControl "180+2"]
[Date "2023.06.13"]
[WhiteClock "0:02:16"]
[BlackClock "0:00:40"]
[Board "85"]

1. d4 {[%clk 0:03:00]}  d5 {[%clk 0:03:00]} 2. c4 {[%clk 0:03:00]}  dxc4 {[%clk 0:03:00]} 3. Nf3 {[%clk 0:02:58]}  Nf6 {[%clk 0:03:01]} 4. e3 {[%clk 0:02:58]}  a6 {[%clk 0:03:01]} 5. Bxc4 {[%clk 0:02:58]}  e6 {[%clk 0:03:02]} 6. O-O {[%clk 0:02:57]}  c5 {[%clk 0:03:02]} 7. Re1 {[%clk 0:02:57]}  Nbd7 {[%clk 0:02:52]} 8. Nc3 {[%clk 0:02:54]}  b5 {[%clk 0:02:50]} 9. Bd3 {[%clk 0:02:53]}  Bb7 {[%clk 0:02:50]} 10. a3 {[%clk 0:02:52]}  Be7 {[%clk 0:02:42]} 11. e4 {[%clk 0:02:51]}  cxd4 {[%clk 0:02:42]} 12. Nxd4 {[%clk 0:02:52]}  Ne5 {[%clk 0:02:34]} 13. Bf4 {[%clk 0:02:51]}  Nxd3 {[%clk 0:02:24]} 14. Qxd3 {[%clk 0:02:52]}  Nh5 {[%clk 0:02:24]} 15. Be5 {[%clk 0:02:42]}  f6 {[%clk 0:02:19]} 16. Qh3 {[%clk 0:02:41]}  fxe5 {[%clk 0:02:14]} 17. Qxh5+ {[%clk 0:02:41]}  g6 {[%clk 0:01:06]} 18. Qxe5 {[%clk 0:02:41]}  O-O {[%clk 0:01:07]} 19. Nxe6 {[%clk 0:02:29]}  Bf6 {[%clk 0:00:56]} 20. Nxd8 {[%clk 0:02:29]}  Bxe5 {[%clk 0:00:57]} 21. Nxb7 {[%clk 0:02:30]}  a5 {[%clk 0:00:55]} 22. Nxb5 {[%clk 0:02:26]}  Rab8 {[%clk 0:00:55]} 23. N7d6 {[%clk 0:02:26]}  Bxb2 {[%clk 0:00:56]} 24. Rad1 {[%clk 0:02:22]}  Rf4 {[%clk 0:00:49]} 25. a4 {[%clk 0:02:22]}  Kf8 {[%clk 0:00:48]} 26. g3 {[%clk 0:02:22]}  Rf3 {[%clk 0:00:47]} 27. Re3 {[%clk 0:02:19]}  Rf6 {[%clk 0:00:45]} 28. e5 {[%clk 0:02:19]}  Re6 {[%clk 0:00:45]} 29. f4 {[%clk 0:02:17]}  Ke7 {[%clk 0:00:40]} 30. Nc4 {[%clk 0:02:16]} 1-0


[Site "https://www.chess.com"]

[Event "Titled Tuesday Blitz June 13 Early 2023"]
[White "Taboas Rodriguez, Daniel"]
[Black "Miranda, Rafael"]
[WhiteFideId "2208466"]
[BlackFideId "130990"]
[WhiteElo "2365"]
[BlackElo "2204"]
[Result "0-1"]
[Round "7"]
[TimeControl "180+2"]
[Date "2023.06.13"]
[WhiteClock "0:00:02"]
[BlackClock "0:00:22"]
[Board "90"]

1. d4 {[%clk 0:03:00]}  Nf6 {[%clk 0:02:59]} 2. Nf3 {[%clk 0:03:00]}  g6 {[%clk 0:02:58]} 3. c4 {[%clk 0:03:00]}  Bg7 {[%clk 0:02:58]} 4. Nc3 {[%clk 0:03:00]}  c6 {[%clk 0:02:59]} 5. e4 {[%clk 0:02:59]}  O-O {[%clk 0:02:58]} 6. e5 {[%clk 0:02:59]}  Ne8 {[%clk 0:02:58]} 7. Bd3 {[%clk 0:02:59]}  d6 {[%clk 0:02:59]} 8. exd6 {[%clk 0:02:55]}  Nxd6 {[%clk 0:02:51]} 9. O-O {[%clk 0:02:54]}  Bg4 {[%clk 0:02:51]} 10. Be3 {[%clk 0:02:53]}  Nd7 {[%clk 0:02:52]} 11. h3 {[%clk 0:02:52]}  Bf5 {[%clk 0:02:52]} 12. Re1 {[%clk 0:02:48]}  Bxd3 {[%clk 0:02:51]} 13. Qxd3 {[%clk 0:02:49]}  Re8 {[%clk 0:02:44]} 14. Rad1 {[%clk 0:02:49]}  Qa5 {[%clk 0:02:43]} 15. a3 {[%clk 0:02:39]}  Qa6 {[%clk 0:02:43]} 16. d5 {[%clk 0:02:24]}  c5 {[%clk 0:02:21]} 17. Nb5 {[%clk 0:02:13]}  Bxb2 {[%clk 0:01:58]} 18. Nc7 {[%clk 0:02:09]}  Qxc4 {[%clk 0:01:58]} 19. Bg5 {[%clk 0:01:43]}  f6 {[%clk 0:01:45]} 20. Qxc4 {[%clk 0:01:14]}  Nxc4 {[%clk 0:01:43]} 21. Bf4 {[%clk 0:01:15]}  Kf7 {[%clk 0:01:36]} 22. a4 {[%clk 0:01:14]}  b6 {[%clk 0:01:21]} 23. Re4 {[%clk 0:00:59]}  Nce5 {[%clk 0:00:50]} 24. Nxe5+ {[%clk 0:00:55]}  Nxe5 {[%clk 0:00:42]} 25. Bg3 {[%clk 0:00:43]}  Rad8 {[%clk 0:00:37]} 26. Nxe8 {[%clk 0:00:41]}  Kxe8 {[%clk 0:00:38]} 27. f4 {[%clk 0:00:40]}  Nf7 {[%clk 0:00:37]} 28. Rde1 {[%clk 0:00:35]}  Rd7 {[%clk 0:00:37]} 29. Bf2 {[%clk 0:00:32]}  Nd6 {[%clk 0:00:36]} 30. R4e2 {[%clk 0:00:31]}  Bc3 {[%clk 0:00:36]} 31. Rc1 {[%clk 0:00:30]}  Bb4 {[%clk 0:00:36]} 32. g4 {[%clk 0:00:27]}  Kf7 {[%clk 0:00:36]} 33. Kg2 {[%clk 0:00:26]}  a5 {[%clk 0:00:37]} 34. Kf3 {[%clk 0:00:26]}  Ne8 {[%clk 0:00:37]} 35. Rd1 {[%clk 0:00:26]}  Nc7 {[%clk 0:00:38]} 36. Ke4 {[%clk 0:00:25]}  Ne8 {[%clk 0:00:34]} 37. Kf3 {[%clk 0:00:21]}  Nd6 {[%clk 0:00:34]} 38. Bg3 {[%clk 0:00:19]}  Ne8 {[%clk 0:00:33]} 39. f5 {[%clk 0:00:19]}  Ng7 {[%clk 0:00:34]} 40. fxg6+ {[%clk 0:00:19]}  hxg6 {[%clk 0:00:34]} 41. d6 {[%clk 0:00:19]}  e5 {[%clk 0:00:34]} 42. g5 {[%clk 0:00:15]}  Nf5 {[%clk 0:00:32]} 43. gxf6 {[%clk 0:00:12]}  Nd4+ {[%clk 0:00:20]} 44. Rxd4 {[%clk 0:00:12]}  exd4 {[%clk 0:00:21]} 45. Be5 {[%clk 0:00:11]}  d3 {[%clk 0:00:21]} 46. Rg2 {[%clk 0:00:10]}  c4 {[%clk 0:00:22]} 47. Ke3 {[%clk 0:00:09]}  Bxd6 {[%clk 0:00:22]} 48. Bc3 {[%clk 0:00:08]}  Bc5+ {[%clk 0:00:22]} 49. Ke4 {[%clk 0:00:08]}  Bb4 {[%clk 0:00:22]} 50. Be5 {[%clk 0:00:06]}  d2 {[%clk 0:00:22]} 51. Rg1 {[%clk 0:00:02]}  d1=Q {[%clk 0:00:22]} 0-1


[Site "https://www.chess.com"]

[Event "Titled Tuesday Blitz June 13 Early 2023"]
[White "MaryanKyrychenko"]
[Black "Turzo, Attila"]
[BlackFideId "704954"]
[WhiteElo "2621"]
[BlackElo "2494"]
[Result "0-1"]
[Round "7"]
[TimeControl "180+2"]
[Date "2023.06.13"]
[WhiteClock "0:00:55"]
[BlackClock "0:00:32"]
[Board "92"]

1. e4 {[%clk 0:03:00]}  d6 {[%clk 0:02:59]} 2. d4 {[%clk 0:03:00]}  Nf6 {[%clk 0:03:00]} 3. Nc3 {[%clk 0:03:00]}  g6 {[%clk 0:03:01]} 4. Bg5 {[%clk 0:02:59]}  Bg7 {[%clk 0:03:00]} 5. f4 {[%clk 0:02:59]}  c6 {[%clk 0:02:52]} 6. Nf3 {[%clk 0:02:58]}  b5 {[%clk 0:02:50]} 7. a3 {[%clk 0:02:53]}  O-O {[%clk 0:02:48]} 8. Be2 {[%clk 0:02:45]}  h6 {[%clk 0:02:44]} 9. Bh4 {[%clk 0:02:38]}  a6 {[%clk 0:02:37]} 10. O-O {[%clk 0:02:38]}  Bb7 {[%clk 0:02:28]} 11. Re1 {[%clk 0:02:37]}  Qb6 {[%clk 0:02:19]} 12. Kh1 {[%clk 0:02:24]}  c5 {[%clk 0:02:01]} 13. e5 {[%clk 0:02:19]}  dxe5 {[%clk 0:01:53]} 14. dxe5 {[%clk 0:02:20]}  Ng4 {[%clk 0:01:45]} 15. h3 {[%clk 0:02:08]}  Ne3 {[%clk 0:01:22]} 16. Qc1 {[%clk 0:02:02]}  Nf5 {[%clk 0:01:19]} 17. Bf2 {[%clk 0:01:57]}  Nd4 {[%clk 0:01:19]} 18. b4 {[%clk 0:01:25]}  Bxf3 {[%clk 0:01:07]} 19. bxc5 {[%clk 0:00:56]}  Qc6 {[%clk 0:00:37]} 20. Bxd4 {[%clk 0:00:56]}  Bxg2+ {[%clk 0:00:35]} 21. Kg1 {[%clk 0:00:55]}  Bxh3 {[%clk 0:00:33]} 22. Qe3 {[%clk 0:00:55]}  Qg2# {[%clk 0:00:32]} 0-1


[Site "https://www.chess.com"]

[Event "Titled Tuesday Blitz June 13 Early 2023"]
[White "Jain Kashish Manoj"]
[Black "Mrithyunjay Mahadevan"]
[WhiteFideId "35081098"]
[BlackFideId "45003521"]
[WhiteElo "2181"]
[BlackElo "1626"]
[Result "1-0"]
[Round "7"]
[TimeControl "180+2"]
[Date "2023.06.13"]
[WhiteClock "0:00:51"]
[BlackClock "0:01:59"]
[Board "93"]

1. Nf3 {[%clk 0:03:00]}  g6 {[%clk 0:02:59]} 2. g3 {[%clk 0:03:00]}  Bg7 {[%clk 0:02:59]} 3. Bg2 {[%clk 0:03:01]}  e5 {[%clk 0:02:56]} 4. O-O {[%clk 0:02:58]}  Ne7 {[%clk 0:02:55]} 5. c4 {[%clk 0:02:58]}  O-O {[%clk 0:02:54]} 6. Nc3 {[%clk 0:02:58]}  Nbc6 {[%clk 0:02:53]} 7. Rb1 {[%clk 0:02:58]}  d5 {[%clk 0:02:52]} 8. cxd5 {[%clk 0:02:46]}  Nxd5 {[%clk 0:02:53]} 9. Nxe5 {[%clk 0:02:29]}  Nxc3 {[%clk 0:02:45]} 10. Nxc6 {[%clk 0:02:29]}  Nxd1 {[%clk 0:02:45]} 11. Nxd8 {[%clk 0:02:30]}  Nxb2 {[%clk 0:02:45]} 12. Nxb7 {[%clk 0:02:09]}  Bxb7 {[%clk 0:02:34]} 13. Bxb7 {[%clk 0:01:54]}  Rab8 {[%clk 0:02:33]} 14. Bxb2 {[%clk 0:01:55]}  Rxb7 {[%clk 0:02:30]} 15. Bxg7 {[%clk 0:01:56]}  Rxb1 {[%clk 0:02:30]} 16. Bxf8 {[%clk 0:01:54]}  Rxf1+ {[%clk 0:02:28]} 17. Kxf1 {[%clk 0:01:55]}  Kxf8 {[%clk 0:02:29]} 18. e4 {[%clk 0:01:47]}  Ke7 {[%clk 0:02:28]} 19. Ke2 {[%clk 0:01:46]}  Kd6 {[%clk 0:02:28]} 20. Kd3 {[%clk 0:01:44]}  f5 {[%clk 0:02:25]} 21. exf5 {[%clk 0:01:33]}  gxf5 {[%clk 0:02:26]} 22. Kc4 {[%clk 0:01:29]}  a6 {[%clk 0:02:19]} 23. d4 {[%clk 0:01:27]}  Kc6 {[%clk 0:02:15]} 24. d5+ {[%clk 0:01:24]}  Kd6 {[%clk 0:02:15]} 25. Kd4 {[%clk 0:01:24]}  h6 {[%clk 0:02:09]} 26. f3 {[%clk 0:01:22]}  h5 {[%clk 0:02:09]} 27. h3 {[%clk 0:01:22]}  a5 {[%clk 0:02:07]} 28. a4 {[%clk 0:01:21]}  c6 {[%clk 0:02:01]} 29. dxc6 {[%clk 0:01:22]}  Kxc6 {[%clk 0:02:02]} 30. Ke5 {[%clk 0:00:55]}  Kc5 {[%clk 0:02:03]} 31. g4 {[%clk 0:00:54]}  Kb4 {[%clk 0:02:04]} 32. gxh5 {[%clk 0:00:47]}  Kxa4 {[%clk 0:02:04]} 33. h6 {[%clk 0:00:48]}  Kb3 {[%clk 0:02:04]} 34. h7 {[%clk 0:00:49]}  a4 {[%clk 0:02:02]} 35. h8=Q {[%clk 0:00:50]}  a3 {[%clk 0:02:02]} 36. Kxf5 {[%clk 0:00:50]}  Ka2 {[%clk 0:02:00]} 37. h4 {[%clk 0:00:50]}  Kb1 {[%clk 0:02:00]} 38. h5 {[%clk 0:00:51]}  a2 {[%clk 0:02:00]} 39. h6 {[%clk 0:00:52]}  a1=Q {[%clk 0:02:01]} 40. Qxa1+ {[%clk 0:00:51]}  Kxa1 {[%clk 0:01:59]} 41. h7 {[%clk 0:00:51]} 1-0


[Site "https://www.chess.com"]

[Event "Titled Tuesday Blitz June 13 Early 2023"]
[White "Altman, Joshua"]
[Black "Hristodoulou, Panagiotis"]
[WhiteFideId "426210"]
[BlackFideId "4214340"]
[WhiteElo "2028"]
[BlackElo "2272"]
[Result "1-0"]
[Round "7"]
[TimeControl "180+2"]
[Date "2023.06.13"]
[WhiteClock "0:01:06"]
[BlackClock "0:01:11"]
[Board "95"]

1. d4 {[%clk 0:03:00]}  Nf6 {[%clk 0:02:57]} 2. c4 {[%clk 0:03:00]}  e6 {[%clk 0:02:55]} 3. Nf3 {[%clk 0:03:00]}  Bb4+ {[%clk 0:02:48]} 4. Nbd2 {[%clk 0:02:59]}  b6 {[%clk 0:02:44]} 5. g3 {[%clk 0:02:59]}  Bb7 {[%clk 0:02:44]} 6. Bg2 {[%clk 0:02:59]}  O-O {[%clk 0:02:44]} 7. O-O {[%clk 0:02:59]}  Bxd2 {[%clk 0:02:44]} 8. Qxd2 {[%clk 0:03:00]}  a5 {[%clk 0:02:45]} 9. b3 {[%clk 0:02:59]}  d6 {[%clk 0:02:45]} 10. Bb2 {[%clk 0:02:59]}  Nbd7 {[%clk 0:02:46]} 11. a3 {[%clk 0:02:57]}  Qe7 {[%clk 0:02:40]} 12. Rac1 {[%clk 0:02:51]}  Rfd8 {[%clk 0:02:40]} 13. Rfd1 {[%clk 0:02:51]}  Rac8 {[%clk 0:02:41]} 14. b4 {[%clk 0:02:39]}  axb4 {[%clk 0:02:35]} 15. axb4 {[%clk 0:02:40]}  b5 {[%clk 0:02:35]} 16. c5 {[%clk 0:02:20]}  Bd5 {[%clk 0:02:29]} 17. Ra1 {[%clk 0:02:09]}  Ra8 {[%clk 0:02:28]} 18. Qf4 {[%clk 0:01:58]}  h6 {[%clk 0:02:11]} 19. h4 {[%clk 0:01:57]}  Ra4 {[%clk 0:01:48]} 20. Rxa4 {[%clk 0:01:44]}  bxa4 {[%clk 0:01:49]} 21. Ba3 {[%clk 0:01:41]}  Rb8 {[%clk 0:01:45]} 22. Rc1 {[%clk 0:01:38]}  dxc5 {[%clk 0:01:36]} 23. dxc5 {[%clk 0:01:26]}  e5 {[%clk 0:01:29]} 24. Qd2 {[%clk 0:01:25]}  c6 {[%clk 0:01:30]} 25. Ne1 {[%clk 0:01:16]}  Bxg2 {[%clk 0:01:19]} 26. Nxg2 {[%clk 0:01:17]}  Nd5 {[%clk 0:01:19]} 27. e4 {[%clk 0:01:12]}  Nc7 {[%clk 0:01:11]} 28. Ne3 {[%clk 0:01:08]}  Nb5 {[%clk 0:01:11]} 29. Nf5 {[%clk 0:01:06]}  Nf8 {[%clk 0:01:11]} 30. Nxe7+ {[%clk 0:01:06]} 1-0


[Site "https://www.chess.com"]